[Event "*** Titled Tuesday Blitz"]
[Site "Chess.com"]
[Date "2020.04.28"]
[Round "8"]
[White "GoValya"]
[Black "indfraeng"]
[Result "1-0"]
[WhiteElo "2156"]
[BlackElo "2248"]
[TimeControl "180+1"]
[EndTime "11:35:48 PDT"]
[Termination "GoValya won by resignation"]

1. d4 {[%clk 0:03:00.9]} 1... d5 {[%clk 0:02:59.4]} 2. Nf3 {[%clk 0:03:00.6]}
2... Nf6 {[%clk 0:02:57.6]} 3. g3 {[%clk 0:03:00.5]} 3... c5 {[%clk 0:02:56.9]}
4. Bg2 {[%clk 0:03:00.5]} 4... cxd4 {[%clk 0:02:55.9]} 5. Nxd4 {[%clk
0:02:59.9]} 5... e5 {[%clk 0:02:56.2]} 6. Nb3 {[%clk 0:02:56.3]} 6... Nc6 {[%clk
0:02:54.9]} 7. Bg5 {[%clk 0:02:55.5]} 7... Be6 {[%clk 0:02:52.1]} 8. O-O {[%clk
0:02:54]} 8... h6 {[%clk 0:02:50.7]} 9. Bxf6 {[%clk 0:02:53.1]} 9... gxf6 {[%clk
0:02:44.6]} 10. N1d2 {[%clk 0:02:49.9]} 10... Bg7 {[%clk 0:02:38.7]} 11. Nc5
{[%clk 0:02:45.6]} 11... b6 {[%clk 0:02:38.2]} 12. Nxe6 {[%clk 0:02:44.8]} 12...
fxe6 {[%clk 0:02:39.1]} 13. e4 {[%clk 0:02:44.9]} 13... O-O {[%clk 0:02:35]} 14.
exd5 {[%clk 0:02:35.7]} 14... exd5 {[%clk 0:02:35.9]} 15. c4 {[%clk 0:02:35.7]}
15... Ne7 {[%clk 0:02:26]} 16. cxd5 {[%clk 0:02:33.5]} 16... Qd6 {[%clk
0:02:24.9]} 17. Ne4 {[%clk 0:02:27.9]} 17... Qb4 {[%clk 0:02:22.2]} 18. d6
{[%clk 0:02:26.6]} 18... Nf5 {[%clk 0:02:20.8]} 19. Nc3 {[%clk 0:02:10.1]} 19...
Rad8 {[%clk 0:02:16.3]} 20. d7 {[%clk 0:02:04.2]} 20... Nd4 {[%clk 0:02:13.9]}
21. Nd5 {[%clk 0:02:00.2]} 21... Qxb2 {[%clk 0:02:12]} 22. Qg4 {[%clk
0:01:51.4]} 22... Qb5 {[%clk 0:02:03.1]} 23. Ne7+ {[%clk 0:01:44.7]} 23... Kf7
{[%clk 0:01:51.8]} 24. Qg6+ {[%clk 0:01:21.4]} 24... Kxe7 {[%clk 0:01:47.6]} 25.
Qxg7+ {[%clk 0:01:21.2]} 25... Kd6 {[%clk 0:01:45.5]} 26. Rad1 {[%clk
0:01:16.5]} 26... Qxd7 {[%clk 0:01:42.5]} 27. Qxh6 {[%clk 0:01:15.7]} 27... Kc7
{[%clk 0:01:37.3]} 28. Qe3 {[%clk 0:01:13.4]} 28... Qf5 {[%clk 0:01:23.9]} 29.
Be4 {[%clk 0:00:59.5]} 29... Qh3 {[%clk 0:01:18.8]} 30. Rc1+ {[%clk 0:00:55.5]}
30... Kb8 {[%clk 0:01:17.5]} 31. Qd3 {[%clk 0:00:54]} 31... Rh8 {[%clk
0:01:13.9]} 32. Rfd1 {[%clk 0:00:39.8]} 32... Qxh2+ {[%clk 0:01:11.3]} 33. Kf1
{[%clk 0:00:39.6]} 33... Qh3+ {[%clk 0:01:11.1]} 34. Bg2 {[%clk 0:00:36.1]}
34... Qf5 {[%clk 0:01:08.6]} 35. Qa6 {[%clk 0:00:33.1]} 35... Nf3 {[%clk
0:00:59.3]} 36. Qc4 {[%clk 0:00:28]} 36... Rc8 {[%clk 0:00:50.8]} 37. Qd5 {[%clk
0:00:27.8]} 37... Rxc1 {[%clk 0:00:12.5]} 38. Rxc1 {[%clk 0:00:27.1]} 38... Rc8
{[%clk 0:00:08.8]} 39. Rxc8+ {[%clk 0:00:20.8]} 39... Qxc8 {[%clk 0:00:09.7]}
40. Bxf3 {[%clk 0:00:21.4]} 40... Qc1+ {[%clk 0:00:07.4]} 41. Kg2 {[%clk
0:00:21.4]} 41... Kc7 {[%clk 0:00:07.7]} 42. Qb7+ {[%clk 0:00:21]} 42... Kd6
{[%clk 0:00:07.9]} 43. Qxa7 {[%clk 0:00:21.1]} 43... Kc5 {[%clk 0:00:06.6]} 44.
Qc7+ {[%clk 0:00:19.9]} 1-0

[Event "*** Titled Tuesday Blitz"]
[Site "Chess.com"]
[Date "2020.04.28"]
[Round "8"]
[White "GamayevOleg"]
[Black "garicradomir"]
[Result "0-1"]
[WhiteElo "2503"]
[BlackElo "2378"]
[TimeControl "180+1"]
[EndTime "11:35:49 PDT"]
[Termination "garicradomir won by resignation"]

1. d3 {[%clk 0:03:00.9]} 1... Nf6 {[%clk 0:02:55.8]} 2. e4 {[%clk 0:03:01.8]}
2... e5 {[%clk 0:02:52.5]} 3. Nf3 {[%clk 0:03:01.6]} 3... Nc6 {[%clk 0:02:51.4]}
4. Be2 {[%clk 0:03:01.9]} 4... d5 {[%clk 0:02:48.8]} 5. Nbd2 {[%clk 0:03:02.2]}
5... Bd6 {[%clk 0:02:39.8]} 6. c3 {[%clk 0:03:01.6]} 6... O-O {[%clk 0:02:38]}
7. O-O {[%clk 0:03:02]} 7... Re8 {[%clk 0:02:35.2]} 8. a4 {[%clk 0:03:02.3]}
8... a5 {[%clk 0:02:28.5]} 9. h3 {[%clk 0:03:01.5]} 9... h6 {[%clk 0:02:27]} 10.
Re1 {[%clk 0:03:00.7]} 10... b6 {[%clk 0:02:21]} 11. Qc2 {[%clk 0:03:00]} 11...
Bb7 {[%clk 0:02:21]} 12. Bf1 {[%clk 0:02:59.5]} 12... Qd7 {[%clk 0:02:21.1]} 13.
exd5 {[%clk 0:02:59.5]} 13... Nxd5 {[%clk 0:02:20.6]} 14. Nc4 {[%clk 0:02:59.5]}
14... Rad8 {[%clk 0:02:15.9]} 15. Bd2 {[%clk 0:02:58.9]} 15... Qf5 {[%clk
0:02:09.8]} 16. Rad1 {[%clk 0:02:48]} 16... Nf4 {[%clk 0:02:06.3]} 17. Bxf4
{[%clk 0:02:47.3]} 17... Qxf4 {[%clk 0:02:07.2]} 18. Ncd2 {[%clk 0:02:38]} 18...
Bf8 {[%clk 0:01:47.8]} 19. g3 {[%clk 0:02:34.3]} 19... Qf5 {[%clk 0:01:40.4]}
20. Nh4 {[%clk 0:02:27.9]} 20... Qc8 {[%clk 0:01:35.6]} 21. Bg2 {[%clk
0:02:26.7]} 21... Nb8 {[%clk 0:01:31.6]} 22. Nc4 {[%clk 0:02:20.6]} 22... Bxg2
{[%clk 0:01:30.7]} 23. Nxg2 {[%clk 0:02:20.4]} 23... Nd7 {[%clk 0:01:27.3]} 24.
Qe2 {[%clk 0:02:15.7]} 24... Nc5 {[%clk 0:01:25.1]} 25. Qc2 {[%clk 0:02:15.7]}
25... Qxh3 {[%clk 0:01:22.6]} 26. Rxe5 {[%clk 0:02:09.7]} 26... Rxe5 {[%clk
0:01:18.6]} 27. Nxe5 {[%clk 0:02:10.6]} 27... Qf5 {[%clk 0:01:16]} 28. Nc6
{[%clk 0:02:01.2]} 28... Rxd3 {[%clk 0:01:12.6]} 29. Rxd3 {[%clk 0:01:53.3]}
29... Qxd3 {[%clk 0:01:12]} 30. Qxd3 {[%clk 0:01:49.6]} 30... Nxd3 {[%clk
0:01:12.9]} 31. b3 {[%clk 0:01:47.8]} 31... Nc5 {[%clk 0:01:10.7]} 32. Nd4
{[%clk 0:01:45.9]} 32... Be7 {[%clk 0:01:09.4]} 33. Ne3 {[%clk 0:01:44.7]} 33...
Bf6 {[%clk 0:01:07.7]} 34. Nec2 {[%clk 0:01:45.1]} 34... Ne4 {[%clk 0:01:00.3]}
35. c4 {[%clk 0:01:37]} 35... Nc5 {[%clk 0:00:57.2]} 36. f3 {[%clk 0:01:33.2]}
36... h5 {[%clk 0:00:56.5]} 37. Kf2 {[%clk 0:01:33.2]} 37... g5 {[%clk
0:00:55.2]} 38. Ke3 {[%clk 0:01:30.8]} 38... Kh7 {[%clk 0:00:53]} 39. b4 {[%clk
0:01:25.9]} 39... axb4 {[%clk 0:00:45.5]} 40. Nxb4 {[%clk 0:01:26.8]} 40...
Bxd4+ {[%clk 0:00:43.9]} 41. Kxd4 {[%clk 0:01:26.5]} 41... Nxa4 {[%clk
0:00:43.5]} 42. Nd5 {[%clk 0:01:26.8]} 42... h4 {[%clk 0:00:41.9]} 43. gxh4
{[%clk 0:01:26.9]} 43... gxh4 {[%clk 0:00:42.8]} 44. Ke3 {[%clk 0:01:26.1]}
44... c6 {[%clk 0:00:40.5]} 45. Ne7 {[%clk 0:01:26]} 45... c5 {[%clk 0:00:37.7]}
46. Nd5 {[%clk 0:01:26]} 46... Kg6 {[%clk 0:00:36.2]} 47. Kf4 {[%clk 0:01:26]}
47... h3 {[%clk 0:00:30.7]} 48. Kg3 {[%clk 0:01:25.9]} 48... Kf5 {[%clk
0:00:29.8]} 49. Kxh3 {[%clk 0:01:24.7]} 49... Ke5 {[%clk 0:00:30]} 50. Kg4
{[%clk 0:01:22.5]} 50... Kd4 {[%clk 0:00:30.2]} 51. Nc7 {[%clk 0:01:15.1]} 51...
Kxc4 {[%clk 0:00:28.4]} 52. Ne8 {[%clk 0:01:16]} 52... Kd5 {[%clk 0:00:25.2]}
53. Kf5 {[%clk 0:01:15.9]} 53... b5 {[%clk 0:00:24.7]} 54. Nf6+ {[%clk
0:01:09.6]} 54... Kd4 {[%clk 0:00:24.8]} 55. Ne4 {[%clk 0:01:10]} 55... c4
{[%clk 0:00:22.8]} 56. Kf6 {[%clk 0:01:07.7]} 56... c3 {[%clk 0:00:23]} 57. Kxf7
{[%clk 0:01:05.6]} 57... c2 {[%clk 0:00:23.1]} 58. Ng3 {[%clk 0:01:06.1]} 58...
Nc3 {[%clk 0:00:21.9]} 59. f4 {[%clk 0:01:01.4]} 59... c1=Q {[%clk 0:00:19.1]}
60. f5 {[%clk 0:01:02.3]} 60... Qf4 {[%clk 0:00:18.3]} 0-1

[Event "*** Titled Tuesday Blitz"]
[Site "Chess.com"]
[Date "2020.04.28"]
[Round "8"]
[White "picturesquecheck"]
[Black "Spring199"]
[Result "1-0"]
[WhiteElo "2163"]
[BlackElo "2377"]
[TimeControl "180+1"]
[EndTime "11:35:49 PDT"]
[Termination "picturesquecheck won by checkmate"]

1. e4 {[%clk 0:03:00.9]} 1... e5 {[%clk 0:02:59]} 2. Nf3 {[%clk 0:02:59.8]} 2...
Nc6 {[%clk 0:02:58.3]} 3. Bb5 {[%clk 0:02:58.7]} 3... a6 {[%clk 0:02:57.6]} 4.
Ba4 {[%clk 0:02:58.3]} 4... Nf6 {[%clk 0:02:57.9]} 5. O-O {[%clk 0:02:57.1]}
5... Be7 {[%clk 0:02:58.2]} 6. Re1 {[%clk 0:02:55.6]} 6... b5 {[%clk 0:02:58.2]}
7. Bb3 {[%clk 0:02:54.4]} 7... O-O {[%clk 0:02:58.4]} 8. a4 {[%clk 0:02:50.2]}
8... Rb8 {[%clk 0:02:57.3]} 9. axb5 {[%clk 0:02:49.7]} 9... axb5 {[%clk
0:02:58.1]} 10. d4 {[%clk 0:02:50.2]} 10... Nxd4 {[%clk 0:02:49.8]} 11. Nxd4
{[%clk 0:02:41.3]} 11... exd4 {[%clk 0:02:50.7]} 12. e5 {[%clk 0:02:41.1]} 12...
Ne8 {[%clk 0:02:50.1]} 13. Qxd4 {[%clk 0:02:16.1]} 13... c5 {[%clk 0:02:44.3]}
14. Qe3 {[%clk 0:02:01.6]} 14... c4 {[%clk 0:02:42.2]} 15. Ba2 {[%clk 0:02:01]}
15... d6 {[%clk 0:02:34.7]} 16. exd6 {[%clk 0:01:50.7]} 16... Bxd6 {[%clk
0:02:30.6]} 17. Nc3 {[%clk 0:01:37.4]} 17... Nf6 {[%clk 0:02:27.9]} 18. Qg5
{[%clk 0:01:21.5]} 18... Qc7 {[%clk 0:02:17.7]} 19. h3 {[%clk 0:01:15.1]} 19...
h6 {[%clk 0:02:01.9]} 20. Qh4 {[%clk 0:01:13.6]} 20... b4 {[%clk 0:01:58.4]} 21.
Nd1 {[%clk 0:01:09.4]} 21... b3 {[%clk 0:01:25.7]} 22. Bb1 {[%clk 0:01:04.7]}
22... Nh7 {[%clk 0:01:18.5]} 23. cxb3 {[%clk 0:01:02.8]} 23... cxb3 {[%clk
0:01:17.2]} 24. Nc3 {[%clk 0:01:01.1]} 24... Be6 {[%clk 0:01:11.5]} 25. Bxh6
{[%clk 0:00:52.8]} 25... Be7 {[%clk 0:00:50.2]} 26. Bxh7+ {[%clk 0:00:51.3]}
26... Kh8 {[%clk 0:00:46.9]} 27. Qh5 {[%clk 0:00:39.4]} 27... gxh6 {[%clk
0:00:14.2]} 28. Qxh6 {[%clk 0:00:37.2]} 28... Bg5 {[%clk 0:00:14.1]} 29. Qxg5
{[%clk 0:00:32.7]} 29... Kxh7 {[%clk 0:00:15]} 30. Qh5+ {[%clk 0:00:32.7]} 30...
Kg7 {[%clk 0:00:14.7]} 31. Qg5+ {[%clk 0:00:32.5]} 31... Kh7 {[%clk 0:00:14.2]}
32. Ne4 {[%clk 0:00:33.3]} 32... f5 {[%clk 0:00:13]} 33. Nf6+ {[%clk 0:00:29.8]}
33... Rxf6 {[%clk 0:00:11.3]} 34. Qxf6 {[%clk 0:00:29.3]} 34... Bf7 {[%clk
0:00:08.1]} 35. Re7 {[%clk 0:00:28.2]} 35... Ra8 {[%clk 0:00:02.5]} 36. Rxf7+
{[%clk 0:00:27.5]} 36... Kg8 {[%clk 0:00:01.3]} 37. Qg7# {[%clk 0:00:26.8]} 1-0

[Event "*** Titled Tuesday Blitz"]
[Site "Chess.com"]
[Date "2020.04.28"]
[Round "8"]
[White "DanielTitichoca"]
[Black "benko_008"]
[Result "1-0"]
[WhiteElo "2349"]
[BlackElo "2490"]
[TimeControl "180+1"]
[EndTime "11:35:50 PDT"]
[Termination "DanielTitichoca won on time"]

1. c4 {[%clk 0:03:00.5]} 1... c5 {[%clk 0:02:59.4]} 2. Nf3 {[%clk 0:02:58.5]}
2... b6 {[%clk 0:02:59.4]} 3. g3 {[%clk 0:02:59.2]} 3... Bb7 {[%clk 0:02:59.4]}
4. Bg2 {[%clk 0:03:00.1]} 4... e6 {[%clk 0:02:59.8]} 5. O-O {[%clk 0:03:00.5]}
5... Nf6 {[%clk 0:03:00]} 6. b3 {[%clk 0:03:00.8]} 6... Be7 {[%clk 0:02:59.7]}
7. Bb2 {[%clk 0:02:59.9]} 7... O-O {[%clk 0:02:59.2]} 8. Nc3 {[%clk 0:02:58.9]}
8... a6 {[%clk 0:02:58.9]} 9. e3 {[%clk 0:02:59.2]} 9... d6 {[%clk 0:02:58.5]}
10. d4 {[%clk 0:02:58.1]} 10... Ne4 {[%clk 0:02:58.4]} 11. d5 {[%clk 0:02:51.3]}
11... Nxc3 {[%clk 0:02:51]} 12. Bxc3 {[%clk 0:02:51.6]} 12... e5 {[%clk
0:02:47.2]} 13. e4 {[%clk 0:02:48.7]} 13... b5 {[%clk 0:02:46.6]} 14. Nd2 {[%clk
0:02:45.1]} 14... Nd7 {[%clk 0:02:40.5]} 15. Qe2 {[%clk 0:02:36.6]} 15... b4
{[%clk 0:02:14]} 16. Bb2 {[%clk 0:02:33.8]} 16... a5 {[%clk 0:02:14.9]} 17. f4
{[%clk 0:02:20.3]} 17... a4 {[%clk 0:02:07.3]} 18. Bh3 {[%clk 0:02:11.3]} 18...
a3 {[%clk 0:02:02.3]} 19. Bc1 {[%clk 0:02:06.6]} 19... exf4 {[%clk 0:02:01.3]}
20. gxf4 {[%clk 0:02:07.5]} 20... Bf6 {[%clk 0:02:01.5]} 21. Rb1 {[%clk
0:02:05.4]} 21... Bd4+ {[%clk 0:01:58.9]} 22. Kh1 {[%clk 0:02:03.5]} 22... Qh4
{[%clk 0:01:29.9]} 23. Bxd7 {[%clk 0:01:58.2]} 23... Rad8 {[%clk 0:01:19.8]} 24.
Bc6 {[%clk 0:01:56.4]} 24... Bc8 {[%clk 0:01:19]} 25. Nf3 {[%clk 0:01:54.5]}
25... Bg4 {[%clk 0:01:11.7]} 26. Nxh4 {[%clk 0:01:31.4]} 26... Bxe2 {[%clk
0:01:12.6]} 27. Bd2 {[%clk 0:01:30.8]} 27... Bd3 {[%clk 0:00:50.4]} 28. Rbe1
{[%clk 0:01:24.8]} 28... g6 {[%clk 0:00:49.9]} 29. Nf3 {[%clk 0:01:17.4]} 29...
Bb2 {[%clk 0:00:48.5]} 30. e5 {[%clk 0:01:11.9]} 30... f5 {[%clk 0:00:43.4]} 31.
e6 {[%clk 0:01:04.3]} 31... Rfe8 {[%clk 0:00:37.2]} 32. Bxe8 {[%clk 0:00:57.8]}
32... Rxe8 {[%clk 0:00:38.1]} 33. Ng5 {[%clk 0:00:53.4]} 33... Kf8 {[%clk
0:00:21.9]} 34. Nf7 {[%clk 0:00:47.3]} 34... Ke7 {[%clk 0:00:21.5]} 35. Rf3
{[%clk 0:00:43.4]} 35... Bc2 {[%clk 0:00:20.5]} 36. Rh3 {[%clk 0:00:42.2]} 36...
h5 {[%clk 0:00:17.6]} 37. Be3 {[%clk 0:00:40.2]} 37... Rc8 {[%clk 0:00:14.9]}
38. Bf2 {[%clk 0:00:40]} 38... Be4+ {[%clk 0:00:10.6]} 39. Kg1 {[%clk
0:00:37.6]} 39... Bf6 {[%clk 0:00:09.7]} 40. Bh4 {[%clk 0:00:37.8]} 40... Bxh4
{[%clk 0:00:09.6]} 41. Rxh4 {[%clk 0:00:38.7]} 41... Bxd5 {[%clk 0:00:09.2]} 42.
cxd5 {[%clk 0:00:37.9]} 42... c4 {[%clk 0:00:09.6]} 43. bxc4 {[%clk 0:00:36.2]}
43... Rxc4 {[%clk 0:00:07.7]} 44. Nxd6 {[%clk 0:00:36.6]} 44... Rc2 {[%clk
0:00:03.2]} 45. Nb5 {[%clk 0:00:34.9]} 45... b3 {[%clk 0:00:02.4]} 46. d6+
{[%clk 0:00:35.8]} 46... Kf6 {[%clk 0:00:02]} 47. e7 {[%clk 0:00:34.6]} 1-0

[Event "*** Titled Tuesday Blitz"]
[Site "Chess.com"]
[Date "2020.04.28"]
[Round "8"]
[White "PetrolulSah"]
[Black "PavelChernomordik"]
[Result "1-0"]
[WhiteElo "2227"]
[BlackElo "2395"]
[TimeControl "180+1"]
[EndTime "11:35:53 PDT"]
[Termination "PetrolulSah won by resignation"]

1. d4 {[%clk 0:03:00.9]} 1... g6 {[%clk 0:02:59.1]} 2. e4 {[%clk 0:02:59.4]}
2... Bg7 {[%clk 0:03:00]} 3. c4 {[%clk 0:02:58.7]} 3... Nc6 {[%clk 0:02:59]} 4.
d5 {[%clk 0:02:52.9]} 4... Nd4 {[%clk 0:02:57.7]} 5. Ne2 {[%clk 0:02:52.6]} 5...
e5 {[%clk 0:02:56.9]} 6. Nxd4 {[%clk 0:02:48.6]} 6... exd4 {[%clk 0:02:53.3]} 7.
Bd3 {[%clk 0:02:45.8]} 7... d6 {[%clk 0:02:52.4]} 8. O-O {[%clk 0:02:45.1]} 8...
Nf6 {[%clk 0:02:49.3]} 9. f4 {[%clk 0:02:42.5]} 9... Ng4 {[%clk 0:02:41]} 10.
Qe2 {[%clk 0:02:28.9]} 10... c6 {[%clk 0:02:35.1]} 11. h3 {[%clk 0:02:27.1]}
11... Ne3 {[%clk 0:02:33.6]} 12. Bxe3 {[%clk 0:02:26.7]} 12... dxe3 {[%clk
0:02:32.4]} 13. Nc3 {[%clk 0:02:27.6]} 13... Qb6 {[%clk 0:02:30]} 14. Nd1 {[%clk
0:02:22.2]} 14... Bd4 {[%clk 0:02:26.4]} 15. Kh2 {[%clk 0:02:20.4]} 15... O-O
{[%clk 0:02:22.3]} 16. Re1 {[%clk 0:02:19.1]} 16... cxd5 {[%clk 0:02:17]} 17.
cxd5 {[%clk 0:02:15.5]} 17... f5 {[%clk 0:02:10.3]} 18. exf5 {[%clk 0:02:12.4]}
18... Bxf5 {[%clk 0:02:03]} 19. g3 {[%clk 0:02:02.6]} 19... Rae8 {[%clk
0:01:58.3]} 20. Rb1 {[%clk 0:01:54.5]} 20... Qc5 {[%clk 0:01:48.5]} 21. Nc3
{[%clk 0:01:44.8]} 21... a6 {[%clk 0:01:34.1]} 22. Rbc1 {[%clk 0:01:43.8]} 22...
Qb4 {[%clk 0:01:31.5]} 23. Bxf5 {[%clk 0:01:35.3]} 23... Rxf5 {[%clk 0:01:29.4]}
24. Rc2 {[%clk 0:01:34.2]} 24... Qb6 {[%clk 0:01:05.9]} 25. Qd3 {[%clk
0:01:33.1]} 25... Rf7 {[%clk 0:01:01.3]} 26. Ree2 {[%clk 0:01:32.6]} 26... Kg7
{[%clk 0:00:57.1]} 27. Ne4 {[%clk 0:01:32.1]} 27... h6 {[%clk 0:00:55.5]} 28.
Nxd6 {[%clk 0:01:29.7]} 28... Qxd6 {[%clk 0:00:48.7]} 29. Qxd4+ {[%clk
0:01:28.8]} 29... Kh7 {[%clk 0:00:48.9]} 30. Rc3 {[%clk 0:01:21.8]} 30... Rfe7
{[%clk 0:00:45.9]} 31. Rcxe3 {[%clk 0:01:19.3]} 31... Rxe3 {[%clk 0:00:43.5]}
32. Rxe3 {[%clk 0:01:18.8]} 32... Rxe3 {[%clk 0:00:43.7]} 33. Qxe3 {[%clk
0:01:19.7]} 33... Qxd5 {[%clk 0:00:43.6]} 34. Qe7+ {[%clk 0:01:15.3]} 34... Kg8
{[%clk 0:00:42.5]} 35. Qe8+ {[%clk 0:01:15]} 35... Kg7 {[%clk 0:00:41.5]} 36.
Qe7+ {[%clk 0:01:09.2]} 36... Kg8 {[%clk 0:00:39.8]} 37. Qe2 {[%clk 0:00:49]}
37... Kf7 {[%clk 0:00:36.8]} 38. b3 {[%clk 0:00:45.3]} 38... b5 {[%clk
0:00:36.5]} 39. Qg2 {[%clk 0:00:45]} 39... Qd7 {[%clk 0:00:33.6]} 40. h4 {[%clk
0:00:38.9]} 40... h5 {[%clk 0:00:32.4]} 41. Qf3 {[%clk 0:00:37.3]} 41... Qd2+
{[%clk 0:00:30.4]} 42. Qg2 {[%clk 0:00:37.1]} 42... Qd7 {[%clk 0:00:28.2]} 43.
Qe2 {[%clk 0:00:36.5]} 43... Qd4 {[%clk 0:00:24.9]} 44. Kg2 {[%clk 0:00:35.8]}
44... Qd5+ {[%clk 0:00:24.4]} 45. Kf2 {[%clk 0:00:35.2]} 45... Qd4+ {[%clk
0:00:23.8]} 46. Kf1 {[%clk 0:00:34.2]} 46... Qa1+ {[%clk 0:00:22.9]} 47. Kg2
{[%clk 0:00:33.6]} 47... Qd4 {[%clk 0:00:23.8]} 48. Qc2 {[%clk 0:00:32.7]} 48...
Qd5+ {[%clk 0:00:22.3]} 1-0

[Event "*** Titled Tuesday Blitz"]
[Site "Chess.com"]
[Date "2020.04.28"]
[Round "8"]
[White "Lion-Al-Messi"]
[Black "jposthuma"]
[Result "0-1"]
[WhiteElo "2440"]
[BlackElo "2586"]
[TimeControl "180+1"]
[EndTime "11:35:54 PDT"]
[Termination "jposthuma won on time"]

1. d4 {[%clk 0:03:00.2]} 1... Nf6 {[%clk 0:02:59.7]} 2. Nf3 {[%clk 0:03:00.7]}
2... c5 {[%clk 0:02:58.3]} 3. d5 {[%clk 0:03:00.6]} 3... b5 {[%clk 0:02:53.6]}
4. a4 {[%clk 0:02:54.4]} 4... Bb7 {[%clk 0:02:50.9]} 5. axb5 {[%clk 0:02:53.7]}
5... Bxd5 {[%clk 0:02:49.9]} 6. Bg5 {[%clk 0:02:43.8]} 6... e6 {[%clk
0:02:42.4]} 7. e3 {[%clk 0:02:42.5]} 7... Be7 {[%clk 0:02:34.6]} 8. Nc3 {[%clk
0:02:40.3]} 8... Bb7 {[%clk 0:02:34.1]} 9. Be2 {[%clk 0:02:35]} 9... O-O {[%clk
0:02:28.2]} 10. O-O {[%clk 0:02:34.6]} 10... h6 {[%clk 0:02:23]} 11. Bf4 {[%clk
0:02:26.8]} 11... d6 {[%clk 0:02:14.4]} 12. Bg3 {[%clk 0:02:16.1]} 12... Nh5
{[%clk 0:02:12.4]} 13. e4 {[%clk 0:02:14.8]} 13... Nxg3 {[%clk 0:02:09.7]} 14.
hxg3 {[%clk 0:02:15.7]} 14... a6 {[%clk 0:02:05.4]} 15. bxa6 {[%clk 0:02:14.6]}
15... Nxa6 {[%clk 0:02:03.2]} 16. Bb5 {[%clk 0:02:12.5]} 16... Nc7 {[%clk
0:01:57.9]} 17. Bd3 {[%clk 0:02:10.4]} 17... d5 {[%clk 0:01:35.1]} 18. e5 {[%clk
0:01:29.2]} 18... Rxa1 {[%clk 0:01:33.6]} 19. Qxa1 {[%clk 0:01:26]} 19... Qa8
{[%clk 0:01:34.5]} 20. Qe1 {[%clk 0:01:24.1]} 20... d4 {[%clk 0:01:17.4]} 21.
Ne4 {[%clk 0:01:23.1]} 21... c4 {[%clk 0:01:17.4]} 22. Nxd4 {[%clk 0:00:30.5]}
22... cxd3 {[%clk 0:01:14.4]} 23. cxd3 {[%clk 0:00:31.4]} 23... Bxe4 {[%clk
0:01:13.1]} 24. dxe4 {[%clk 0:00:29.9]} 24... Bc5 {[%clk 0:01:02.2]} 25. Nc2
{[%clk 0:00:29.4]} 25... Rb8 {[%clk 0:00:54.9]} 26. Qc3 {[%clk 0:00:29.1]} 26...
Qa7 {[%clk 0:00:33.8]} 27. b4 {[%clk 0:00:26.5]} 27... Bb6 {[%clk 0:00:31.2]}
28. Kh2 {[%clk 0:00:24.8]} 28... Nb5 {[%clk 0:00:29.9]} 29. Qd3 {[%clk
0:00:20.7]} 29... Nd4 {[%clk 0:00:20.2]} 30. Ne3 {[%clk 0:00:20.8]} 30... Rd8
{[%clk 0:00:15.9]} 31. Ng4 {[%clk 0:00:17.4]} 31... Nc6 {[%clk 0:00:13.2]} 32.
Qc3 {[%clk 0:00:08.2]} 32... Ne7 {[%clk 0:00:10.3]} 33. Qf3 {[%clk 0:00:03.4]}
33... h5 {[%clk 0:00:08.8]} 34. Ne3 {[%clk 0:00:03.4]} 34... Bxe3 {[%clk
0:00:08.3]} 35. fxe3 {[%clk 0:00:04.3]} 35... Ng6 {[%clk 0:00:08.2]} 36. Qxh5
{[%clk 0:00:03.7]} 36... Qxe3 {[%clk 0:00:06.7]} 37. Qg4 {[%clk 0:00:03.3]}
37... Nxe5 {[%clk 0:00:05.7]} 38. Qh4 {[%clk 0:00:02.5]} 38... Qh6 {[%clk
0:00:05]} 39. Qxh6 {[%clk 0:00:02.1]} 39... gxh6 {[%clk 0:00:05.9]} 40. Rf6
{[%clk 0:00:02.3]} 40... Ng4+ {[%clk 0:00:06]} 0-1

[Event "*** Titled Tuesday Blitz"]
[Site "Chess.com"]
[Date "2020.04.28"]
[Round "8"]
[White "DinaBelenkaya"]
[Black "Piotrek1979"]
[Result "0-1"]
[WhiteElo "2199"]
[BlackElo "2404"]
[TimeControl "180+1"]
[EndTime "11:35:54 PDT"]
[Termination "Piotrek1979 won on time"]

1. e4 {[%clk 0:03:00.9]} 1... c5 {[%clk 0:02:59.1]} 2. Nc3 {[%clk 0:02:59.2]}
2... Nc6 {[%clk 0:02:57.4]} 3. d3 {[%clk 0:02:56.3]} 3... g6 {[%clk 0:02:54.1]}
4. g3 {[%clk 0:02:56]} 4... Bg7 {[%clk 0:02:54]} 5. Bg2 {[%clk 0:02:55.9]} 5...
Rb8 {[%clk 0:02:54.5]} 6. Nge2 {[%clk 0:02:56.1]} 6... b5 {[%clk 0:02:54.4]} 7.
Be3 {[%clk 0:02:50.7]} 7... b4 {[%clk 0:02:53.1]} 8. Nd5 {[%clk 0:02:33.6]} 8...
e6 {[%clk 0:02:47.3]} 9. Ndf4 {[%clk 0:02:26.8]} 9... d6 {[%clk 0:02:19.9]} 10.
O-O {[%clk 0:02:03.1]} 10... Nge7 {[%clk 0:02:18.3]} 11. c3 {[%clk 0:01:56.9]}
11... bxc3 {[%clk 0:02:17.6]} 12. bxc3 {[%clk 0:01:57.1]} 12... Ba6 {[%clk
0:02:13.6]} 13. Qd2 {[%clk 0:01:54.6]} 13... O-O {[%clk 0:02:11.7]} 14. Rab1
{[%clk 0:01:33.7]} 14... Qa5 {[%clk 0:02:08.7]} 15. h4 {[%clk 0:01:08.4]} 15...
Ne5 {[%clk 0:01:34.6]} 16. c4 {[%clk 0:00:40.9]} 16... Qa3 {[%clk 0:00:53.5]}
17. Qc2 {[%clk 0:00:34.6]} 17... N7c6 {[%clk 0:00:45.3]} 18. Rb3 {[%clk
0:00:29.5]} 18... Rxb3 {[%clk 0:00:42]} 19. Qxb3 {[%clk 0:00:21.3]} 19... Qa5
{[%clk 0:00:41.1]} 20. a3 {[%clk 0:00:17.2]} 20... Rb8 {[%clk 0:00:39.4]} 21.
Qa2 {[%clk 0:00:17.4]} 21... Nxc4 {[%clk 0:00:21.5]} 22. dxc4 {[%clk 0:00:15.8]}
22... Rb2 {[%clk 0:00:22.1]} 23. Qa1 {[%clk 0:00:11.1]} 23... Rxe2 {[%clk
0:00:22.1]} 24. Qc1 {[%clk 0:00:10.8]} 24... Ra2 {[%clk 0:00:17.7]} 25. Rd1
{[%clk 0:00:07.9]} 25... Nd4 {[%clk 0:00:17.8]} 26. Bxd4 {[%clk 0:00:07.4]}
26... Bxd4 {[%clk 0:00:18.7]} 27. h5 {[%clk 0:00:01.9]} 27... Bxf2+ {[%clk
0:00:17.5]} 28. Kh2 {[%clk 0:00:01.6]} 28... Bd4 {[%clk 0:00:18.4]} 29. Nd3
{[%clk 0:00:01.3]} 29... Qc3 {[%clk 0:00:15.3]} 30. Qg5 {[%clk 0:00:02]} 30...
Bf6 {[%clk 0:00:07.3]} 31. Qg4 {[%clk 0:00:01.6]} 31... Kg7 {[%clk 0:00:07.8]}
32. h6+ {[%clk 0:00:01.5]} 32... Kxh6 {[%clk 0:00:07.8]} 33. Qf4+ {[%clk
0:00:01.6]} 33... Kg7 {[%clk 0:00:08]} 34. Ne1 {[%clk 0:00:02.2]} 34... Qb2
{[%clk 0:00:07.2]} 35. Qxd6 {[%clk 0:00:02.3]} 35... Be5 {[%clk 0:00:07.1]} 36.
Qxa6 {[%clk 0:00:02.2]} 36... Qf2 {[%clk 0:00:06.7]} 37. Kh1 {[%clk 0:00:01.5]}
37... Qxg3 {[%clk 0:00:06.5]} 38. Kg1 {[%clk 0:00:01.3]} 38... Qh2+ {[%clk
0:00:05.6]} 39. Kf1 {[%clk 0:00:01.2]} 39... Bg3 {[%clk 0:00:06.5]} 0-1